[Event "Titled Tuesday Blitz December 20 Late 2022"]
[White "Krishnan, Varun"]
[Black "Ward, Ieuan C"]
[WhiteFideId "5054508"]
[BlackFideId "406627"]
[WhiteElo "2602"]
[BlackElo "2363"]
[Result "1-0"]
[Round "04"]
[TimeControl "180+1"]
[Date "2022.12.21"]
[WhiteClock "0:02:17"]
[BlackClock "0:01:50"]

1. d4 {[%clk 0:03:00]}  Nf6 {[%clk 0:02:59]} 2. c4 {[%clk 0:03:00]}  e6 {[%clk 0:02:59]} 3. g3 {[%clk 0:02:59]}  d5 {[%clk 0:02:59]} 4. Bg2 {[%clk 0:02:57]}  Be7 {[%clk 0:02:59]} 5. Nf3 {[%clk 0:02:57]}  O-O {[%clk 0:02:59]} 6. O-O {[%clk 0:02:57]}  dxc4 {[%clk 0:02:59]} 7. Qc2 {[%clk 0:02:57]}  a6 {[%clk 0:02:59]} 8. a4 {[%clk 0:02:57]}  Bd7 {[%clk 0:02:58]} 9. Qxc4 {[%clk 0:02:57]}  Bc6 {[%clk 0:02:58]} 10. Bg5 {[%clk 0:02:57]}  h6 {[%clk 0:02:52]} 11. Bxf6 {[%clk 0:02:53]}  Bxf6 {[%clk 0:02:52]} 12. Nbd2 {[%clk 0:02:51]}  Nd7 {[%clk 0:02:51]} 13. a5 {[%clk 0:02:44]}  Bd5 {[%clk 0:02:42]} 14. Qc2 {[%clk 0:02:41]}  e5 {[%clk 0:02:26]} 15. e4 {[%clk 0:02:32]}  Bc6 {[%clk 0:02:22]} 16. Nb3 {[%clk 0:02:31]}  Re8 {[%clk 0:02:13]} 17. Rfd1 {[%clk 0:02:27]}  exd4 {[%clk 0:02:04]} 18. Nfxd4 {[%clk 0:02:20]}  Bb5 {[%clk 0:01:51]} 19. Nxb5 {[%clk 0:02:19]}  axb5 {[%clk 0:01:49]} 20. Nc5 {[%clk 0:02:19]}  Re7 {[%clk 0:01:50]} 21. Bh3 {[%clk 0:02:17]} 1-0


[Site "https://www.chess.com"]

[Event "Titled Tuesday Blitz December 20 Late 2022"]
[White "Lazavik, Denis"]
[Black "Zakhartsov, Vladimir"]
[WhiteFideId "13515110"]
[BlackFideId "4145097"]
[WhiteElo "2484"]
[BlackElo "2535"]
[Result "1-0"]
[Round "04"]
[TimeControl "180+1"]
[Date "2022.12.20"]
[WhiteClock "0:00:10"]
[BlackClock "0:00:03"]

1. d4 {[%clk 0:03:00]}  Nf6 {[%clk 0:02:54]} 2. c4 {[%clk 0:03:01]}  e6 {[%clk 0:02:54]} 3. Nf3 {[%clk 0:03:02]}  d5 {[%clk 0:02:55]} 4. g3 {[%clk 0:03:02]}  Bb4+ {[%clk 0:02:51]} 5. Bd2 {[%clk 0:03:02]}  Be7 {[%clk 0:02:51]} 6. Bg2 {[%clk 0:03:03]}  O-O {[%clk 0:02:51]} 7. O-O {[%clk 0:03:03]}  Nbd7 {[%clk 0:02:46]} 8. Qc2 {[%clk 0:03:03]}  c6 {[%clk 0:02:40]} 9. Bf4 {[%clk 0:03:03]}  b6 {[%clk 0:02:37]} 10. cxd5 {[%clk 0:03:02]}  cxd5 {[%clk 0:02:35]} 11. Rc1 {[%clk 0:03:03]}  Ba6 {[%clk 0:02:33]} 12. Nc3 {[%clk 0:03:03]}  b5 {[%clk 0:02:22]} 13. a4 {[%clk 0:03:01]}  Qb6 {[%clk 0:02:15]} 14. axb5 {[%clk 0:02:51]}  Bxb5 {[%clk 0:02:15]} 15. Nxb5 {[%clk 0:02:45]}  Qxb5 {[%clk 0:02:16]} 16. e3 {[%clk 0:02:43]}  a5 {[%clk 0:01:47]} 17. Bf1 {[%clk 0:02:32]}  Qb7 {[%clk 0:01:47]} 18. Qc6 {[%clk 0:02:28]}  Ra7 {[%clk 0:01:39]} 19. Bb5 {[%clk 0:02:07]}  Bb4 {[%clk 0:01:36]} 20. Qxb7 {[%clk 0:02:03]}  Rxb7 {[%clk 0:01:37]} 21. Bc6 {[%clk 0:02:04]}  Ra7 {[%clk 0:01:35]} 22. Kf1 {[%clk 0:01:59]}  h6 {[%clk 0:01:35]} 23. h4 {[%clk 0:01:57]}  Ne4 {[%clk 0:01:22]} 24. Ke2 {[%clk 0:01:52]}  f6 {[%clk 0:01:23]} 25. h5 {[%clk 0:01:42]}  Nb6 {[%clk 0:01:21]} 26. Bb5 {[%clk 0:01:37]}  Rc8 {[%clk 0:01:03]} 27. Rxc8+ {[%clk 0:01:17]}  Nxc8 {[%clk 0:01:04]} 28. Bd3 {[%clk 0:01:06]}  Ncd6 {[%clk 0:01:02]} 29. Ne1 {[%clk 0:00:59]}  Nc4 {[%clk 0:00:42]} 30. Nc2 {[%clk 0:00:54]}  Bd6 {[%clk 0:00:17]} 31. Bxe4 {[%clk 0:00:52]}  Bxf4 {[%clk 0:00:12]} 32. Bd3 {[%clk 0:00:40]}  Bd6 {[%clk 0:00:11]} 33. Bxc4 {[%clk 0:00:28]}  dxc4 {[%clk 0:00:12]} 34. Kd2 {[%clk 0:00:29]}  Rb7 {[%clk 0:00:10]} 35. Rxa5 {[%clk 0:00:20]}  Rxb2 {[%clk 0:00:09]} 36. Kc3 {[%clk 0:00:21]}  Rb1 {[%clk 0:00:09]} 37. Ra1 {[%clk 0:00:21]}  Rb5 {[%clk 0:00:05]} 38. Rh1 {[%clk 0:00:21]}  Rf5 {[%clk 0:00:04]} 39. f4 {[%clk 0:00:21]}  Ra5 {[%clk 0:00:04]} 40. Kxc4 {[%clk 0:00:21]}  f5 {[%clk 0:00:05]} 41. Kd3 {[%clk 0:00:20]}  Rb5 {[%clk 0:00:04]} 42. Ra1 {[%clk 0:00:13]}  Kf7 {[%clk 0:00:04]} 43. Ra6 {[%clk 0:00:11]}  Be7 {[%clk 0:00:03]} 44. Ne1 {[%clk 0:00:10]}  Rb3+ {[%clk 0:00:03]} 45. Ke2 {[%clk 0:00:10]}  Bf6 {[%clk 0:00:04]} 46. Nd3 {[%clk 0:00:10]}  Be7 {[%clk 0:00:02]} 47. Ne5+ {[%clk 0:00:10]}  Kf6 {[%clk 0:00:02]} 48. d5 {[%clk 0:00:10]}  Rb2+ {[%clk 0:00:03]} 49. Kf3 {[%clk 0:00:10]} 1-0


[Site "https://www.chess.com"]

[Event "Titled Tuesday Blitz December 20 Late 2022"]
[White "Li, Hui"]
[Black "Przybylski, Wojciech"]
[WhiteFideId "15400310"]
[BlackFideId "1117599"]
[WhiteElo "1954"]
[BlackElo "2217"]
[Result "0-1"]
[Round "04"]
[TimeControl "180+1"]
[Date "2022.12.21"]
[WhiteClock "0:00:01"]
[BlackClock "0:00:21"]

1. e4 {[%clk 0:02:50]}  c5 {[%clk 0:02:59]} 2. Nf3 {[%clk 0:02:48]}  d6 {[%clk 0:03:00]} 3. d4 {[%clk 0:02:48]}  cxd4 {[%clk 0:03:01]} 4. Nxd4 {[%clk 0:02:49]}  Nf6 {[%clk 0:03:01]} 5. Nc3 {[%clk 0:02:48]}  a6 {[%clk 0:03:02]} 6. Be2 {[%clk 0:02:49]}  e5 {[%clk 0:03:02]} 7. Nb3 {[%clk 0:02:47]}  Be7 {[%clk 0:03:03]} 8. O-O {[%clk 0:02:48]}  O-O {[%clk 0:03:02]} 9. Be3 {[%clk 0:02:48]}  Qc7 {[%clk 0:03:00]} 10. Qd2 {[%clk 0:02:46]}  Be6 {[%clk 0:03:00]} 11. Rfd1 {[%clk 0:02:45]}  Nbd7 {[%clk 0:02:59]} 12. a4 {[%clk 0:02:44]}  Nb6 {[%clk 0:02:58]} 13. a5 {[%clk 0:02:44]}  Nc4 {[%clk 0:02:58]} 14. Bxc4 {[%clk 0:02:45]}  Qxc4 {[%clk 0:02:58]} 15. f3 {[%clk 0:02:43]}  Rfd8 {[%clk 0:02:57]} 16. Bb6 {[%clk 0:02:32]}  Rd7 {[%clk 0:02:55]} 17. Qf2 {[%clk 0:02:30]}  Qc6 {[%clk 0:02:54]} 18. Nc1 {[%clk 0:02:16]}  Rc8 {[%clk 0:02:51]} 19. Nd3 {[%clk 0:02:09]}  Re8 {[%clk 0:02:24]} 20. Nb4 {[%clk 0:01:51]}  Qc4 {[%clk 0:02:22]} 21. Nbd5 {[%clk 0:01:48]}  Nxd5 {[%clk 0:02:17]} 22. Nxd5 {[%clk 0:01:48]}  Bf8 {[%clk 0:02:13]} 23. b3 {[%clk 0:01:35]}  Qc6 {[%clk 0:02:03]} 24. c4 {[%clk 0:01:29]}  f5 {[%clk 0:02:02]} 25. Nc7 {[%clk 0:01:03]}  Rxc7 {[%clk 0:02:00]} 26. Bxc7 {[%clk 0:01:03]}  Qxc7 {[%clk 0:02:00]} 27. exf5 {[%clk 0:00:53]}  Bxf5 {[%clk 0:02:00]} 28. Qd2 {[%clk 0:00:52]}  Be6 {[%clk 0:01:57]} 29. h3 {[%clk 0:00:51]}  Rd8 {[%clk 0:01:52]} 30. Qg5 {[%clk 0:00:49]}  Be7 {[%clk 0:01:49]} 31. Qe3 {[%clk 0:00:44]}  h6 {[%clk 0:01:39]} 32. Rd3 {[%clk 0:00:39]}  Bf5 {[%clk 0:01:12]} 33. Rdd1 {[%clk 0:00:35]}  Bf8 {[%clk 0:01:05]} 34. Qd2 {[%clk 0:00:23]}  Rd7 {[%clk 0:01:04]} 35. Qd5+ {[%clk 0:00:23]}  Kh7 {[%clk 0:01:00]} 36. Rac1 {[%clk 0:00:20]}  Qc6 {[%clk 0:00:50]} 37. Kh2 {[%clk 0:00:13]}  Qxd5 {[%clk 0:00:46]} 38. Rxd5 {[%clk 0:00:13]}  Be6 {[%clk 0:00:44]} 39. Rd2 {[%clk 0:00:12]}  Rc7 {[%clk 0:00:44]} 40. c5 {[%clk 0:00:08]}  d5 {[%clk 0:00:34]} 41. b4 {[%clk 0:00:07]}  Be7 {[%clk 0:00:33]} 42. Rdc2 {[%clk 0:00:07]}  Bd7 {[%clk 0:00:33]} 43. Rd2 {[%clk 0:00:07]}  Bc6 {[%clk 0:00:32]} 44. Rcd1 {[%clk 0:00:07]}  Bg5 {[%clk 0:00:31]} 45. Re2 {[%clk 0:00:07]}  Re7 {[%clk 0:00:29]} 46. Rde1 {[%clk 0:00:06]}  Kg6 {[%clk 0:00:29]} 47. g3 {[%clk 0:00:06]}  Bf6 {[%clk 0:00:29]} 48. f4 {[%clk 0:00:05]}  e4 {[%clk 0:00:28]} 49. g4 {[%clk 0:00:06]}  d4 {[%clk 0:00:28]} 50. Kg3 {[%clk 0:00:05]}  Kf7 {[%clk 0:00:27]} 51. h4 {[%clk 0:00:05]}  g5 {[%clk 0:00:26]} 52. fxg5 {[%clk 0:00:04]}  hxg5 {[%clk 0:00:26]} 53. h5 {[%clk 0:00:04]}  Be5+ {[%clk 0:00:25]} 54. Kh3 {[%clk 0:00:05]}  Bf4 {[%clk 0:00:25]} 55. Rf1 {[%clk 0:00:02]}  d3 {[%clk 0:00:23]} 56. Ref2 {[%clk 0:00:02]}  e3 {[%clk 0:00:24]} 57. Rxf4+ {[%clk 0:00:02]}  gxf4 {[%clk 0:00:24]} 58. Rxf4+ {[%clk 0:00:03]}  Kg7 {[%clk 0:00:24]} 59. g5 {[%clk 0:00:03]}  e2 {[%clk 0:00:23]} 60. h6+ {[%clk 0:00:03]}  Kh7 {[%clk 0:00:23]} 61. Rf6 {[%clk 0:00:02]}  Be4 {[%clk 0:00:22]} 62. Kg4 {[%clk 0:00:01]}  Bg6 {[%clk 0:00:21]} 0-1


[Site "https://www.chess.com"]

[Event "Titled Tuesday Blitz December 20 Late 2022"]
[White "Makridis, Dimitrios"]
[Black "Saveliev, Alexei"]
[WhiteFideId "25864475"]
[BlackFideId "24128546"]
[WhiteElo "2272"]
[BlackElo "2290"]
[Result "1/2-1/2"]
[Round "04"]
[TimeControl "180+1"]
[Date "2022.12.20"]
[WhiteClock "0:00:53"]
[BlackClock "0:01:07"]

1. e4 {[%clk 0:03:00]}  c5 {[%clk 0:02:58]} 2. Nf3 {[%clk 0:02:59]}  d6 {[%clk 0:02:59]} 3. c3 {[%clk 0:02:59]}  Nf6 {[%clk 0:02:59]} 4. Be2 {[%clk 0:02:58]}  g6 {[%clk 0:02:56]} 5. O-O {[%clk 0:02:58]}  Bg7 {[%clk 0:02:56]} 6. Re1 {[%clk 0:02:58]}  O-O {[%clk 0:02:56]} 7. Bf1 {[%clk 0:02:59]}  Bg4 {[%clk 0:02:55]} 8. h3 {[%clk 0:02:59]}  Bxf3 {[%clk 0:02:54]} 9. Qxf3 {[%clk 0:03:00]}  Nc6 {[%clk 0:02:54]} 10. d3 {[%clk 0:03:00]}  Qc7 {[%clk 0:02:52]} 11. Nd2 {[%clk 0:02:59]}  b5 {[%clk 0:02:50]} 12. Qd1 {[%clk 0:02:59]}  Rab8 {[%clk 0:02:50]} 13. Nf3 {[%clk 0:02:58]}  b4 {[%clk 0:02:43]} 14. d4 {[%clk 0:02:56]}  bxc3 {[%clk 0:02:42]} 15. bxc3 {[%clk 0:02:57]}  Qa5 {[%clk 0:02:41]} 16. Bd2 {[%clk 0:02:56]}  Qa3 {[%clk 0:02:38]} 17. e5 {[%clk 0:02:47]}  dxe5 {[%clk 0:02:35]} 18. dxe5 {[%clk 0:02:48]}  Ne8 {[%clk 0:02:30]} 19. e6 {[%clk 0:02:47]}  f5 {[%clk 0:02:28]} 20. Rb1 {[%clk 0:02:43]}  Rxb1 {[%clk 0:02:24]} 21. Qxb1 {[%clk 0:02:44]}  Bxc3 {[%clk 0:02:22]} 22. Re3 {[%clk 0:02:44]}  Qb2 {[%clk 0:02:21]} 23. Qxb2 {[%clk 0:02:30]}  Bxb2 {[%clk 0:02:21]} 24. Bc3 {[%clk 0:02:31]}  Bxc3 {[%clk 0:02:13]} 25. Rxc3 {[%clk 0:02:32]}  Nd4 {[%clk 0:02:10]} 26. Rxc5 {[%clk 0:02:30]}  Nxf3+ {[%clk 0:02:09]} 27. gxf3 {[%clk 0:02:31]}  Kg7 {[%clk 0:02:02]} 28. Ra5 {[%clk 0:02:31]}  Kf6 {[%clk 0:02:02]} 29. Rxa7 {[%clk 0:02:29]}  Nd6 {[%clk 0:01:58]} 30. a4 {[%clk 0:02:29]}  Rc8 {[%clk 0:01:55]} 31. a5 {[%clk 0:02:26]}  Rc1 {[%clk 0:01:54]} 32. a6 {[%clk 0:02:25]}  Kxe6 {[%clk 0:01:53]} 33. Ra8 {[%clk 0:02:23]}  Ra1 {[%clk 0:01:53]} 34. Kg2 {[%clk 0:02:22]}  f4 {[%clk 0:01:51]} 35. Bd3 {[%clk 0:02:18]}  Ra3 {[%clk 0:01:48]} 36. a7 {[%clk 0:02:15]}  Kf7 {[%clk 0:01:47]} 37. Bc2 {[%clk 0:02:07]}  Kg7 {[%clk 0:01:47]} 38. Be4 {[%clk 0:02:01]}  Nb5 {[%clk 0:01:44]} 39. Rb8 {[%clk 0:01:33]}  Nxa7 {[%clk 0:01:43]} 40. Rb7 {[%clk 0:01:33]}  Kf6 {[%clk 0:01:43]} 41. Rb8 {[%clk 0:01:33]}  Ra5 {[%clk 0:01:41]} 42. h4 {[%clk 0:01:32]}  Nb5 {[%clk 0:01:39]} 43. Rb6+ {[%clk 0:01:32]}  Nd6 {[%clk 0:01:39]} 44. Kh3 {[%clk 0:01:30]}  Rb5 {[%clk 0:01:36]} 45. Ra6 {[%clk 0:01:30]}  h5 {[%clk 0:01:36]} 46. Kg2 {[%clk 0:01:27]}  Rb3 {[%clk 0:01:33]} 47. Bd5 {[%clk 0:01:25]}  Rd3 {[%clk 0:01:33]} 48. Be4 {[%clk 0:01:19]}  Rd2 {[%clk 0:01:30]} 49. Bc6 {[%clk 0:01:18]}  Kf7 {[%clk 0:01:28]} 50. Be4 {[%clk 0:01:12]}  Nxe4 {[%clk 0:01:25]} 51. fxe4 {[%clk 0:01:13]}  Rd3 {[%clk 0:01:26]} 52. Rb6 {[%clk 0:01:11]}  e6 {[%clk 0:01:25]} 53. e5 {[%clk 0:01:06]}  Rd5 {[%clk 0:01:24]} 54. Rb7+ {[%clk 0:01:06]}  Kf8 {[%clk 0:01:24]} 55. Kf3 {[%clk 0:01:05]}  Rxe5 {[%clk 0:01:23]} 56. Kxf4 {[%clk 0:01:05]}  Rf5+ {[%clk 0:01:23]} 57. Kg3 {[%clk 0:01:05]}  Rf7 {[%clk 0:01:23]} 58. Rb6 {[%clk 0:01:05]}  Ke7 {[%clk 0:01:23]} 59. Rb7+ {[%clk 0:01:05]}  Kf6 {[%clk 0:01:24]} 60. Rb6 {[%clk 0:01:06]}  Rd7 {[%clk 0:01:24]} 61. Ra6 {[%clk 0:01:06]}  Rd3+ {[%clk 0:01:24]} 62. f3 {[%clk 0:01:06]}  Rd4 {[%clk 0:01:24]} 63. Rb6 {[%clk 0:01:06]}  Rd5 {[%clk 0:01:24]} 64. Ra6 {[%clk 0:01:06]}  Kf5 {[%clk 0:01:24]} 65. Ra8 {[%clk 0:01:07]}  e5 {[%clk 0:01:19]} 66. Rf8+ {[%clk 0:01:07]}  Ke6 {[%clk 0:01:19]} 67. Ra8 {[%clk 0:01:07]}  Rd3 {[%clk 0:01:18]} 68. Ra6+ {[%clk 0:01:06]}  Kf5 {[%clk 0:01:18]} 69. Ra8 {[%clk 0:01:05]}  Rb3 {[%clk 0:01:12]} 70. Rf8+ {[%clk 0:01:01]}  Ke6 {[%clk 0:01:13]} 71. Re8+ {[%clk 0:01:02]}  Kf6 {[%clk 0:01:13]} 72. Kg2 {[%clk 0:00:59]}  Rb4 {[%clk 0:01:12]} 73. Kg3 {[%clk 0:00:58]}  Rc4 {[%clk 0:01:09]} 74. Rf8+ {[%clk 0:00:58]}  Ke7 {[%clk 0:01:08]} 75. Rg8 {[%clk 0:00:56]}  Kf7 {[%clk 0:01:09]} 76. Ra8 {[%clk 0:00:56]}  e4 {[%clk 0:01:09]} 77. Ra7+ {[%clk 0:00:56]}  Kf6 {[%clk 0:01:09]} 78. Ra6+ {[%clk 0:00:57]}  Kg7 {[%clk 0:01:10]} 79. Ra7+ {[%clk 0:00:56]}  Kh6 {[%clk 0:01:10]} 80. fxe4 {[%clk 0:00:57]}  Rxe4 {[%clk 0:01:11]} 81. Rb7 {[%clk 0:00:56]}  Rg4+ {[%clk 0:01:10]} 82. Kh3 {[%clk 0:00:56]}  Rc4 {[%clk 0:01:11]} 83. Ra7 {[%clk 0:00:56]}  Rc3+ {[%clk 0:01:11]} 84. Kh2 {[%clk 0:00:56]}  Rb3 {[%clk 0:01:12]} 85. Rc7 {[%clk 0:00:56]}  Rb6 {[%clk 0:01:11]} 86. Rd7 {[%clk 0:00:56]}  g5 {[%clk 0:01:11]} 87. hxg5+ {[%clk 0:00:57]}  Kxg5 {[%clk 0:01:12]} 88. Rd5+ {[%clk 0:00:57]}  Kg4 {[%clk 0:01:11]} 89. Rd4+ {[%clk 0:00:58]}  Kf3 {[%clk 0:01:11]} 90. Rh4 {[%clk 0:00:56]}  Rb5 {[%clk 0:01:11]} 91. Ra4 {[%clk 0:00:53]}  Rf5 {[%clk 0:01:07]} 92. Kh3 {[%clk 0:00:52]}  Rf4 {[%clk 0:01:05]} 93. Rxf4+ {[%clk 0:00:51]}  Kxf4 {[%clk 0:01:06]} 94. Kh4 {[%clk 0:00:52]}  Kf5 {[%clk 0:01:07]} 95. Kxh5 {[%clk 0:00:53]} 1/2-1/2


[Site "https://www.chess.com"]

[Event "Titled Tuesday Blitz December 20 Late 2022"]
[White "Martinez Reyes, Pedro Ramon"]
[Black "Han, Yichen"]
[WhiteFideId "3901807"]
[BlackFideId "1054430"]
[WhiteElo "2354"]
[BlackElo "2323"]
[Result "1-0"]
[Round "04"]
[TimeControl "180+1"]
[Date "2022.12.21"]
[WhiteClock "0:00:09"]
[BlackClock "0:00:02"]

1. e4 {[%clk 0:03:00]}  c6 {[%clk 0:02:59]} 2. Nf3 {[%clk 0:02:57]}  g6 {[%clk 0:02:59]} 3. d4 {[%clk 0:02:57]}  Bg7 {[%clk 0:02:59]} 4. Nc3 {[%clk 0:02:55]}  d5 {[%clk 0:02:59]} 5. exd5 {[%clk 0:02:55]}  cxd5 {[%clk 0:02:59]} 6. Be2 {[%clk 0:02:55]}  Nc6 {[%clk 0:02:59]} 7. O-O {[%clk 0:02:56]}  Bg4 {[%clk 0:02:59]} 8. h3 {[%clk 0:02:56]}  Bxf3 {[%clk 0:02:58]} 9. Bxf3 {[%clk 0:02:56]}  e6 {[%clk 0:02:58]} 10. Ne2 {[%clk 0:02:56]}  Nge7 {[%clk 0:02:57]} 11. c3 {[%clk 0:02:56]}  O-O {[%clk 0:02:57]} 12. Nf4 {[%clk 0:02:56]}  Rb8 {[%clk 0:02:51]} 13. Nd3 {[%clk 0:02:56]}  Nf5 {[%clk 0:02:49]} 14. a4 {[%clk 0:02:53]}  b6 {[%clk 0:02:44]} 15. Bf4 {[%clk 0:02:53]}  Rc8 {[%clk 0:02:44]} 16. g3 {[%clk 0:02:39]}  Nd6 {[%clk 0:02:41]} 17. h4 {[%clk 0:02:40]}  h5 {[%clk 0:02:36]} 18. Kg2 {[%clk 0:02:40]}  Nc4 {[%clk 0:02:32]} 19. Qe2 {[%clk 0:02:38]}  Re8 {[%clk 0:02:30]} 20. Rae1 {[%clk 0:02:24]}  Qd7 {[%clk 0:02:24]} 21. g4 {[%clk 0:02:24]}  hxg4 {[%clk 0:02:20]} 22. Bxg4 {[%clk 0:02:24]}  f5 {[%clk 0:02:01]} 23. Bf3 {[%clk 0:02:17]}  e5 {[%clk 0:02:00]} 24. dxe5 {[%clk 0:02:14]}  N6xe5 {[%clk 0:02:00]} 25. Nxe5 {[%clk 0:02:10]}  Nxe5 {[%clk 0:01:59]} 26. Bxe5 {[%clk 0:02:09]}  Rxe5 {[%clk 0:01:59]} 27. Qd3 {[%clk 0:02:10]}  Rd8 {[%clk 0:01:50]} 28. Rxe5 {[%clk 0:02:07]}  Bxe5 {[%clk 0:01:50]} 29. Rd1 {[%clk 0:02:08]}  Qxa4 {[%clk 0:01:39]} 30. Qe3 {[%clk 0:02:06]}  Qf4 {[%clk 0:01:13]} 31. Qxf4 {[%clk 0:01:57]}  Bxf4 {[%clk 0:01:13]} 32. Bxd5+ {[%clk 0:01:57]}  Kg7 {[%clk 0:01:13]} 33. c4 {[%clk 0:01:57]}  Be5 {[%clk 0:01:04]} 34. b4 {[%clk 0:01:56]}  Bf6 {[%clk 0:01:04]} 35. c5 {[%clk 0:01:28]}  bxc5 {[%clk 0:00:54]} 36. bxc5 {[%clk 0:01:29]}  Bxh4 {[%clk 0:00:53]} 37. c6 {[%clk 0:01:29]}  Bf6 {[%clk 0:00:47]} 38. f4 {[%clk 0:00:59]}  Be7 {[%clk 0:00:38]} 39. Re1 {[%clk 0:00:47]}  Bd6 {[%clk 0:00:31]} 40. Rb1 {[%clk 0:00:42]}  Rc8 {[%clk 0:00:21]} 41. Kf3 {[%clk 0:00:31]}  Rc7 {[%clk 0:00:21]} 42. Re1 {[%clk 0:00:28]}  a5 {[%clk 0:00:20]} 43. Re8 {[%clk 0:00:28]}  a4 {[%clk 0:00:14]} 44. Rd8 {[%clk 0:00:28]}  Be7 {[%clk 0:00:12]} 45. Ra8 {[%clk 0:00:18]}  a3 {[%clk 0:00:12]} 46. Ke2 {[%clk 0:00:18]}  Bd6 {[%clk 0:00:11]} 47. Ke3 {[%clk 0:00:18]}  Re7+ {[%clk 0:00:11]} 48. Kf3 {[%clk 0:00:18]}  Rc7 {[%clk 0:00:10]} 49. Ke3 {[%clk 0:00:16]}  Kf6 {[%clk 0:00:10]} 50. Rd8 {[%clk 0:00:10]}  Bc5+ {[%clk 0:00:08]} 51. Kd3 {[%clk 0:00:11]}  Ke7 {[%clk 0:00:05]} 52. Ra8 {[%clk 0:00:08]}  Kd6 {[%clk 0:00:04]} 53. Kc4 {[%clk 0:00:09]}  Be3 {[%clk 0:00:04]} 54. Rd8+ {[%clk 0:00:08]}  Ke7 {[%clk 0:00:04]} 55. Rg8 {[%clk 0:00:09]}  Bxf4 {[%clk 0:00:03]} 56. Rxg6 {[%clk 0:00:08]}  Bd6 {[%clk 0:00:03]} 57. Re6+ {[%clk 0:00:09]}  Kd8 {[%clk 0:00:03]} 58. Rxd6+ {[%clk 0:00:09]}  Kc8 {[%clk 0:00:03]} 59. Kb5 {[%clk 0:00:09]}  f4 {[%clk 0:00:02]} 60. Kb6 {[%clk 0:00:10]}  Kb8 {[%clk 0:00:02]} 61. Be6 {[%clk 0:00:09]}  Re7 {[%clk 0:00:02]} 62. Rd8# {[%clk 0:00:09]} 1-0


[Site "https://www.chess.com"]

[Event "Titled Tuesday Blitz December 20 Late 2022"]
[White "Martins Jr Sobrinho, Manuel De"]
[Black "Bambino Filho, Antonio Carlos"]
[WhiteFideId "2170310"]
[BlackFideId "2113163"]
[WhiteElo "1924"]
[BlackElo "2409"]
[Result "0-1"]
[Round "04"]
[TimeControl "180+1"]
[Date "2022.12.21"]
[WhiteClock "0:01:54"]
[BlackClock "0:02:27"]

1. e4 {[%clk 0:02:58]}  g6 {[%clk 0:03:00]} 2. d4 {[%clk 0:02:58]}  Bg7 {[%clk 0:03:01]} 3. Nc3 {[%clk 0:02:58]}  d6 {[%clk 0:03:01]} 4. f4 {[%clk 0:02:58]}  Nf6 {[%clk 0:02:59]} 5. Nf3 {[%clk 0:02:58]}  O-O {[%clk 0:02:59]} 6. Bd3 {[%clk 0:02:57]}  c5 {[%clk 0:02:59]} 7. dxc5 {[%clk 0:02:56]}  dxc5 {[%clk 0:03:00]} 8. e5 {[%clk 0:02:56]}  Nd5 {[%clk 0:03:00]} 9. Nxd5 {[%clk 0:02:56]}  Qxd5 {[%clk 0:03:01]} 10. Qe2 {[%clk 0:02:56]}  Bf5 {[%clk 0:03:01]} 11. Bxf5 {[%clk 0:02:50]}  gxf5 {[%clk 0:03:02]} 12. Be3 {[%clk 0:02:45]}  b6 {[%clk 0:03:00]} 13. O-O {[%clk 0:02:43]}  Nc6 {[%clk 0:03:00]} 14. Rfd1 {[%clk 0:02:41]}  Qe4 {[%clk 0:02:59]} 15. c3 {[%clk 0:02:34]}  Rfd8 {[%clk 0:02:38]} 16. Ng5 {[%clk 0:02:23]}  Qa4 {[%clk 0:02:31]} 17. Qh5 {[%clk 0:02:05]}  Rxd1+ {[%clk 0:02:28]} 18. Rxd1 {[%clk 0:02:05]}  Rd8 {[%clk 0:02:28]} 19. Qxf7+ {[%clk 0:01:56]}  Kh8 {[%clk 0:02:29]} 20. Rxd8+ {[%clk 0:01:54]}  Nxd8 {[%clk 0:02:27]} 21. Qe8+ {[%clk 0:01:54]}  Qxe8 {[%clk 0:02:27]} 0-1


[Site "https://www.chess.com"]

[Event "Titled Tuesday Blitz December 20 Late 2022"]
[White "Mihajlov, Sebastian"]
[Black "Shimanov, Aleksandr"]
[WhiteFideId "1512110"]
[BlackFideId "4198603"]
[WhiteElo "2464"]
[BlackElo "2605"]
[Result "0-1"]
[Round "04"]
[TimeControl "180+1"]
[Date "2022.12.20"]
[WhiteClock "0:00:06"]
[BlackClock "0:00:48"]

1. e4 {[%clk 0:03:00]}  c6 {[%clk 0:02:59]} 2. d4 {[%clk 0:03:01]}  d5 {[%clk 0:02:59]} 3. exd5 {[%clk 0:03:02]}  cxd5 {[%clk 0:02:59]} 4. Bd3 {[%clk 0:03:03]}  Nc6 {[%clk 0:02:57]} 5. c3 {[%clk 0:03:04]}  Nf6 {[%clk 0:02:57]} 6. Bf4 {[%clk 0:03:03]}  Bg4 {[%clk 0:02:55]} 7. Qb3 {[%clk 0:03:03]}  Qd7 {[%clk 0:02:54]} 8. Nd2 {[%clk 0:03:04]}  e6 {[%clk 0:02:54]} 9. Ngf3 {[%clk 0:03:04]}  Bd6 {[%clk 0:02:53]} 10. Bxd6 {[%clk 0:03:05]}  Qxd6 {[%clk 0:02:54]} 11. O-O {[%clk 0:03:06]}  O-O {[%clk 0:02:50]} 12. Rfe1 {[%clk 0:03:06]}  Bxf3 {[%clk 0:02:49]} 13. Nxf3 {[%clk 0:03:06]}  Qc7 {[%clk 0:02:50]} 14. Qc2 {[%clk 0:03:02]}  g6 {[%clk 0:02:45]} 15. Qd2 {[%clk 0:02:51]}  Kg7 {[%clk 0:02:44]} 16. h4 {[%clk 0:02:47]}  Rab8 {[%clk 0:02:40]} 17. Ne5 {[%clk 0:02:45]}  Nxe5 {[%clk 0:02:37]} 18. dxe5 {[%clk 0:02:42]}  Nd7 {[%clk 0:02:37]} 19. Qg5 {[%clk 0:02:41]}  Qd8 {[%clk 0:02:35]} 20. Qg3 {[%clk 0:02:38]}  h5 {[%clk 0:02:35]} 21. Re3 {[%clk 0:02:31]}  Qe7 {[%clk 0:02:35]} 22. Rae1 {[%clk 0:02:30]}  b5 {[%clk 0:02:35]} 23. a3 {[%clk 0:02:31]}  a5 {[%clk 0:02:35]} 24. f4 {[%clk 0:02:22]}  Kh8 {[%clk 0:02:04]} 25. Qh3 {[%clk 0:01:53]}  Rg8 {[%clk 0:01:32]} 26. g4 {[%clk 0:01:46]}  b4 {[%clk 0:01:28]} 27. axb4 {[%clk 0:01:43]}  axb4 {[%clk 0:01:29]} 28. c4 {[%clk 0:01:44]}  dxc4 {[%clk 0:01:26]} 29. Bxc4 {[%clk 0:01:44]}  Nb6 {[%clk 0:01:20]} 30. Bb3 {[%clk 0:01:42]}  Rbd8 {[%clk 0:01:20]} 31. Kh2 {[%clk 0:01:30]}  Rd4 {[%clk 0:01:04]} 32. Re4 {[%clk 0:01:07]}  Qc5 {[%clk 0:01:00]} 33. Qf3 {[%clk 0:00:59]}  hxg4 {[%clk 0:00:56]} 34. Qxg4 {[%clk 0:00:59]}  Rxe4 {[%clk 0:00:56]} 35. Rxe4 {[%clk 0:01:00]}  Qf2+ {[%clk 0:00:57]} 36. Qg2 {[%clk 0:00:43]}  Qxh4+ {[%clk 0:00:56]} 37. Kg1 {[%clk 0:00:44]}  Rc8 {[%clk 0:00:54]} 38. Rd4 {[%clk 0:00:05]}  Rc1+ {[%clk 0:00:52]} 39. Rd1 {[%clk 0:00:05]}  Rxd1+ {[%clk 0:00:51]} 40. Bxd1 {[%clk 0:00:06]}  Qxf4 {[%clk 0:00:48]} 0-1


[Site "https://www.chess.com"]